bitfinex-derivatives/quotes_BTCF0:USTF0_20210102
["timestamp","ask_amount","ask_price","bid_price","bid_amount"]
[1609627386906,0.29071158,32180.0,32179.0,4.64885813]
[1609627387305,0.29071158,32180.0,32179.0,4.82928971]
[1609627387506,0.29071158,32180.0,32179.0,4.64885813]
[1609627388509,0.29071158,32180.0,32179.0,4.67885813]
[1609627389212,0.29071158,32180.0,32179.0,4.85928971]
[1609627389811,0.1085,32190.0,32179.0,4.85928971]
[1609627390012,0.91973979,32201.0,32179.0,0.24898971]
[1609627390211,0.91973979,32201.0,32192.0,4.8967]
[1609627390614,0.356,32201.0,32192.0,4.8967]
[1609627390813,0.356,32201.0,32193.0,0.00040652]
[1609627391013,0.356,32201.0,32193.0,0.03854528]
[1609627391213,0.356,32201.0,32200.0,0.18043158]
[1609627391613,0.1771,32205.0,32201.0,3.6997]
[1609627391815,0.1771,32205.0,32200.0,0.18083802]
[1609627392212,1.0,32213.0,32202.0,0.00040641]
[1609627392414,1.0,32213.0,32209.0,4.8746]
[1609627392917,1.0,32213.0,32210.0,0.00040887]
[1609627393316,1.0,32213.0,32212.0,0.18043158]
[1609627393717,0.56480819,32221.0,32212.0,0.18084042]
[1609627394317,0.56480819,32221.0,32220.0,3.592]
[1609627395017,0.1771,32222.0,32220.0,3.592]
[1609627395218,0.18043158,32221.0,32220.0,0.18043158]
[1609627395621,0.29511158,32221.0,32220.0,4.75053158]
[1609627397422,0.11468,32221.0,32220.0,4.75053158]
[1609627399024,0.356,32224.0,32220.0,4.75053158]
[1609627400124,0.356,32224.0,32220.0,0.18043158]
[1609627401224,0.18043158,32221.0,32220.0,0.18043158]
[1609627401425,0.34678158,32221.0,32220.0,0.18043158]
[1609627401627,0.34678158,32221.0,32220.0,3.87473158]
[1609627402025,0.16635,32221.0,32220.0,3.87473158]
[1609627403129,0.12492,32226.0,32220.0,3.87473158]
[1609627403329,0.12492,32226.0,32225.0,0.18043158]
[1609627403529,0.12492,32226.0,32225.0,5.27263158]
[1609627403930,0.12492,32226.0,32225.0,5.27303912]
[1609627405435,0.12492,32226.0,32225.0,6.27303912]
[1609627406233,0.1771,32240.0,32225.0,6.27303912]
[1609627406635,0.1771,32240.0,32226.0,0.0004075]
[1609627407235,0.1771,32240.0,32239.0,0.18043158]
[1609627407436,0.1771,32240.0,32239.0,0.89863158]
[1609627408037,0.16848,32241.0,32239.0,0.89863158]
[1609627411444,0.18043158,32246.0,32239.0,0.89863158]
[1609627413347,0.18043158,32246.0,32245.0,0.18043158]
[1609627413547,0.18043158,32246.0,32245.0,0.90773158]
[1609627418655,0.34370158,32246.0,32245.0,0.90773158]
[1609627420557,0.34370158,32246.0,32245.0,0.90813906]
[1609627421361,0.34370158,32246.0,32245.0,0.72770748]
[1609627424868,0.34370158,32246.0,32245.0,0.00040748]
[1609627425365,0.34370158,32246.0,32229.0,0.18043158]
[1609627425565,0.34370158,32246.0,32245.0,0.00040754]
[1609627425765,1.34370158,32246.0,32245.0,0.00040754]
[1609627425965,1.34370158,32246.0,32233.0,4.1422]
[1609627426166,1.34370158,32246.0,32245.0,0.00040756]
[1609627426365,1.34370158,32246.0,32234.0,0.00040759]
[1609627426768,1.34370158,32246.0,32245.0,0.00040759]
[1609627426968,1.34370158,32246.0,32235.0,0.00040759]
[1609627427167,1.34370158,32246.0,32245.0,0.00040762]
[1609627427368,1.34370158,32246.0,32236.0,0.00040768]
[1609627427569,0.34370158,32246.0,32236.0,0.00040768]
[1609627427769,0.0003811,32245.0,32234.0,0.00040768]
[1609627427970,0.0003811,32245.0,32237.0,0.00040765]
[1609627428171,0.0003811,32245.0,32235.0,0.00040765]
[1609627428571,0.0003811,32245.0,32234.0,0.00040765]
[1609627428771,0.0003811,32245.0,32236.0,0.00040767]
[1609627428970,0.0003811,32245.0,32235.0,0.00040767]
[1609627429373,0.0003811,32245.0,32234.0,0.00040767]
[1609627429572,0.18043158,32236.0,32233.0,4.1422]
[1609627429773,0.18043158,32236.0,32235.0,0.00040767]
[1609627429973,0.33266158,32236.0,32235.0,0.00040767]
[1609627430174,0.33266158,32236.0,32234.0,0.00040767]
[1609627430373,0.33266158,32236.0,32235.0,0.00040767]
[1609627430874,0.33266158,32236.0,32234.0,0.00040767]
[1609627431075,0.33266158,32236.0,32235.0,0.00040767]
[1609627431475,0.33266158,32236.0,32234.0,0.00040767]
[1609627431674,1.33266158,32236.0,32235.0,0.00040767]
[1609627432174,1.33266158,32236.0,32227.0,0.00040767]
[1609627432575,1.33266158,32236.0,32235.0,0.00040767]
[1609627432777,1.33266158,32236.0,32235.0,4.0438]
[1609627432976,1.33266158,32236.0,32235.0,4.04420765]
[1609627433777,0.33266158,32236.0,32235.0,4.04420765]
[1609627434480,0.33266158,32236.0,32235.0,4.0438]
[1609627437583,0.33266158,32236.0,32235.0,4.22423158]
[1609627437784,0.15223,32236.0,32235.0,4.22423158]
[1609627438285,0.16327,32246.0,32235.0,4.22423158]
[1609627438687,1.0,32254.0,32235.0,4.22423158]
[1609627438886,1.0,32254.0,32236.0,0.0004075]
[1609627439488,1.0,32254.0,32244.0,0.18043158]
[1609627439690,1.0,32251.0,32244.0,0.18043158]
[1609627439891,1.0,32251.0,32245.0,0.0004075]
[1609627441593,0.18043158,32246.0,32245.0,0.0004075]
[1609627441993,0.28590158,32246.0,32245.0,0.0004075]
[1609627449608,0.28590158,32246.0,32244.0,0.6274]
[1609627451911,1.69919017,32245.0,32244.0,0.6274]
[1609627458020,1.69919017,32245.0,32244.0,0.62781219]
[1609627459621,2.69919017,32245.0,32244.0,0.62781219]
[1609627461422,2.69957117,32245.0,32244.0,0.62781219]
[1609627467632,1.69957117,32245.0,32244.0,0.62781219]
[1609627470041,1.69919017,32245.0,32244.0,0.62781219]
[1609627471740,2.69919017,32245.0,32244.0,0.62781219]
[1609627473143,1.0,32245.0,32244.0,0.62781219]
[1609627473643,0.28590158,32246.0,32244.0,0.62781219]
[1609627474046,0.28590158,32246.0,32245.0,0.00041208]
[1609627475647,1.28590158,32246.0,32245.0,0.00041208]
[1609627477649,0.28590158,32246.0,32245.0,0.00041208]
[1609627480752,0.27630158,32246.0,32245.0,0.00041208]
[1609627483658,1.27630158,32246.0,32245.0,0.00041208]
[1609627484258,1.28593118,32246.0,32245.0,0.00041208]
[1609627485662,0.28593118,32246.0,32245.0,0.00041208]
[1609627488267,0.86201128,32246.0,32245.0,0.00041208]
[1609627489364,0.84294078,32246.0,32218.0,2.02877779]
[1609627489565,3.7289,32244.0,32235.0,0.03850666]
[1609627489764,3.7289,32244.0,32218.0,2.02877779]
[1609627489765,3.7289,32244.0,32219.0,0.11469654]
[1609627489967,0.00963691,32242.0,32236.0,0.00041211]
[1609627490166,0.0916,32241.0,32236.0,0.00041211]
[1609627490366,0.0916,32241.0,32223.0,0.03850814]
[1609627490568,0.12032196,32241.0,32237.0,0.00041213]
[1609627490767,1.0,32240.0,32224.0,0.00041213]
[1609627490966,0.092,32239.0,32224.0,0.00041213]
[1609627491166,4.4388,32226.0,32218.0,0.03850843]
[1609627491367,1.12766,32226.0,32225.0,0.0004112]
[1609627491569,4.06915,32219.0,32213.0,2.03451397]
[1609627491769,5.06915,32219.0,32213.0,2.03451397]
[1609627491971,0.18043158,32214.0,32213.0,2.03451397]
[1609627492169,0.18043158,32214.0,32213.0,1.97351397]
[1609627492371,0.18043158,32214.0,32213.0,1.9129253]
[1609627492774,0.18043158,32214.0,32213.0,0.00041133]
[1609627493173,1.18043158,32214.0,32197.0,0.03853105]
[1609627493376,3.6917,32210.0,32197.0,0.03811965]
[1609627493576,1.0,32209.0,32197.0,0.03811965]
[1609627493774,1.0,32209.0,32186.0,0.11477095]
[1609627493974,0.18043158,32187.0,32185.0,2.23501457]
[1609627494175,0.31008158,32187.0,32182.0,2.23496822]
[1609627494575,0.31008158,32187.0,32183.0,0.0385354]
[1609627495778,1.0,32184.0,32180.0,0.03853918]
[1609627495978,0.18043158,32181.0,32180.0,0.03853918]
[1609627496178,0.18043158,32181.0,32179.0,0.03]
[1609627496377,0.18043158,32181.0,32180.0,0.03854052]
[1609627496978,0.18043158,32181.0,32180.0,0.03812902]
[1609627497178,0.18043158,32181.0,32180.0,0.00041152]
[1609627497379,0.18043158,32181.0,32180.0,0.00082304]
[1609627497780,1.18043158,32181.0,32180.0,0.00082304]
[1609627497982,1.76243158,32181.0,32180.0,0.00082304]
[1609627498382,1.76243158,32181.0,32169.0,2.2540533]
[1609627498782,1.76243158,32181.0,32170.0,0.00041156]
[1609627498981,1.76243158,32181.0,32169.0,2.2540533]
[1609627499183,1.76243158,32181.0,32171.0,0.00041166]
[1609627499383,1.0,32180.0,32171.0,0.00041166]
[1609627499585,3.6965,32173.0,32172.0,0.00041167]
[1609627499984,4.03468158,32173.0,32172.0,0.00041167]
[1609627500485,4.03468158,32173.0,32156.0,7.18833984]
[1609627500684,4.12728158,32173.0,32156.0,7.18833984]
[1609627500883,4.12728158,32173.0,32157.0,0.0004118]
[1609627501085,4.12728158,32173.0,32156.0,7.18833984]
[1609627501285,5.12728158,32173.0,32158.0,0.00041186]
[1609627501485,4.12728158,32173.0,32158.0,0.00041186]
[1609627501686,4.12728158,32173.0,32157.0,0.00041186]
[1609627501886,3.94685,32173.0,32159.0,0.00041188]
[1609627502087,3.94685,32173.0,32158.0,0.00041188]
[1609627502486,3.94685,32173.0,32160.0,0.00041188]
[1609627502687,3.94685,32173.0,32144.0,0.18043158]
[1609627502688,0.15775,32173.0,32159.0,0.00041186]
[1609627502887,0.15775,32173.0,32161.0,0.00041186]
[1609627503287,5.10025,32173.0,32160.0,0.00041186]
[1609627503488,5.10025,32173.0,32162.0,0.00041188]
[1609627503689,5.10025,32173.0,32161.0,0.00041188]
[1609627503690,0.15775,32173.0,32161.0,0.00041188]
[1609627503988,0.18043158,32162.0,32160.0,4.5555]
[1609627504188,0.14956,32162.0,32160.0,4.5555]
[1609627504590,0.14956,32162.0,32161.0,0.00041182]
[1609627505391,0.15775,32173.0,32161.0,0.00041182]
[1609627505593,0.57487789,32198.0,32161.0,0.00041182]
[1609627505793,1.0,32193.0,32168.0,4.37429]
[1609627505993,0.18043158,32184.0,32182.0,0.18043158]
[1609627506195,1.0,32193.0,32184.0,5.0652]
[1609627506998,1.0,32193.0,32185.0,0.00041146]
[1609627507798,0.00946583,32197.0,32185.0,0.00041146]
[1609627508000,0.00946583,32197.0,32196.0,0.18043158]
[1609627509300,0.00946583,32197.0,32196.0,5.07223158]
[1609627509501,0.00944936,32206.0,32196.0,5.07223158]
[1609627509701,0.00944936,32206.0,32196.0,5.07264298]
[1609627510001,0.00944936,32206.0,32201.0,0.18043158]
[1609627511101,0.1771,32209.0,32201.0,0.18043158]
[1609627511301,0.13078,32210.0,32201.0,0.18043158]
[1609627511600,0.1771,32228.0,32201.0,0.18043158]
[1609627512001,0.18043158,32202.0,32201.0,0.18043158]
[1609627512604,0.18043158,32202.0,32189.0,0.15624]
[1609627513002,0.18043158,32202.0,32190.0,0.00041185]
[1609627514004,0.18043158,32202.0,32198.0,0.18043158]
[1609627516105,0.18043158,32202.0,32197.0,4.1651]
[1609627516305,0.18043158,32202.0,32199.0,0.00041187]
[1609627516607,0.18043158,32202.0,32198.0,0.00041187]
[1609627516806,0.18043158,32202.0,32200.0,0.00041187]
[1609627517107,0.18043158,32202.0,32198.0,0.00041187]
[1609627517407,0.18043158,32202.0,32201.0,0.00041187]
[1609627517607,0.18043158,32202.0,32199.0,0.00041187]
[1609627518007,0.18043158,32202.0,32198.0,0.00041187]
[1609627518207,0.18043158,32202.0,32200.0,0.00041187]
[1609627518407,0.18043158,32202.0,32199.0,0.00041187]
[1609627518708,0.18043158,32202.0,32198.0,0.00041187]
[1609627518908,0.18043158,32202.0,32200.0,0.00041187]
[1609627519308,0.18043158,32202.0,32198.0,0.00041238]
[1609627519508,0.18043158,32202.0,32201.0,0.00041238]
[1609627519710,0.18043158,32202.0,32199.0,0.00041238]
[1609627520109,0.18043158,32202.0,32198.0,0.00041238]
[1609627520308,0.18043158,32202.0,32200.0,0.00041238]
[1609627520507,0.18043158,32202.0,32197.0,4.1651]
[1609627520508,0.18043158,32202.0,32199.0,0.00041238]
[1609627520808,0.18043158,32202.0,32198.0,0.00041238]
[1609627521208,0.18043158,32202.0,32200.0,0.00041238]
[1609627521408,0.18043158,32202.0,32197.0,4.1651]
[1609627521409,0.18043158,32202.0,32199.0,0.00041238]
[1609627521608,0.18043158,32202.0,32201.0,0.00041238]
[1609627521810,0.18043158,32202.0,32200.0,0.00041238]
[1609627522211,0.18043158,32202.0,32198.0,0.00041238]
[1609627522411,0.18043158,32202.0,32201.0,0.00041238]
[1609627522614,0.18043158,32202.0,32199.0,0.00041238]
[1609627523013,0.18043158,32202.0,32201.0,0.00041238]
[1609627523213,0.18043158,32202.0,32200.0,0.00041238]
[1609627523413,0.18043158,32202.0,32201.0,0.00041238]
[1609627524014,0.03,32201.0,32196.0,0.18043158]
[1609627524415,0.03,32201.0,32197.0,0.00041239]
[1609627526015,0.03,32201.0,32200.0,0.18043158]
[1609627526315,0.03,32201.0,32200.0,0.18084397]
[1609627528717,0.03,32201.0,32200.0,4.15804397]
[1609627529316,0.03,32201.0,32200.0,4.15763158]
[1609627529518,0.03,32201.0,32200.0,4.1580439]
[1609627532119,0.03,32201.0,32200.0,4.19616056]
[1609627534726,0.03,32201.0,32200.0,4.27239551]
[1609627542327,0.03,32201.0,32200.0,5.27239551]
[1609627545833,0.03,32201.0,32200.0,5.38674074]
[1609627546233,0.03,32201.0,32200.0,5.27239551]
[1609627548135,0.18043158,32209.0,32200.0,5.27239551]
[1609627548636,0.18043158,32209.0,32201.0,0.1147549]
[1609627548837,0.18043158,32209.0,32202.0,1.0]
[1609627549136,0.18043158,32209.0,32203.0,0.11475535]
[1609627550240,0.18043158,32209.0,32208.0,0.18043158]
[1609627550841,0.18043158,32209.0,32208.0,0.82805796]
[1609627551242,0.18043158,32209.0,32208.0,0.9042871]
[1609627564759,0.18043158,32209.0,32208.0,0.72385552]
[1609627564958,0.18043158,32209.0,32208.0,0.11475552]
[1609627565159,0.18043158,32209.0,32208.0,0.03852638]
[1609627565559,0.18043158,32209.0,32203.0,0.11477703]
[1609627565760,0.18043158,32209.0,32208.0,0.03853614]
[1609627565962,0.18043158,32209.0,32204.0,4.18083806]
[1609627566161,0.18043158,32205.0,32204.0,4.18083806]
[1609627566361,0.18043158,32205.0,32204.0,4.1423]
[1609627566561,0.18043158,32205.0,32204.0,4.18084056]
[1609627567663,1.18043158,32205.0,32204.0,4.18084056]
[1609627571266,1.18043158,32205.0,32204.0,4.1423]
[1609627571466,1.18043158,32205.0,32204.0,4.18083696]
[1609627571667,0.18043158,32205.0,32204.0,4.18083696]
[1609627573168,0.18043158,32205.0,32204.0,4.25708386]
[1609627577377,0.03,32207.0,32204.0,4.25708386]
[1609627577877,0.03,32207.0,32205.0,0.11477396]
[1609627578279,0.03,32207.0,32206.0,0.18043158]
[1609627578579,0.03,32207.0,32206.0,0.21896191]
[1609627630848,0.03,32207.0,32206.0,4.30716191]
[1609627631349,0.03,32207.0,32206.0,4.38339902]
[1609627632952,0.03,32207.0,32206.0,5.38339902]
[1609627647076,0.14516,32210.0,32206.0,5.38339902]
[1609627647472,0.00397864,32219.0,32206.0,5.38339902]
[1609627647673,0.00397864,32219.0,32207.0,0.1147435]
[1609627647872,0.00397864,32219.0,32208.0,1.0]
[1609627648073,0.1697,32220.0,32208.0,1.0]
[1609627648272,0.01363974,32223.0,32208.0,1.0]
[1609627648472,0.01363974,32223.0,32209.0,0.11473614]
[1609627648674,0.5331,32224.0,32210.0,1.0]
[1609627648875,0.5331,32224.0,32222.0,0.18043158]
[1609627649074,0.5331,32224.0,32223.0,5.1685]
[1609627649474,0.5331,32224.0,32223.0,5.20701528]
[1609627649475,0.1771,32224.0,32223.0,5.20701528]
[1609627649674,0.1771,32224.0,32223.0,5.28323008]
[1609627650379,0.1771,32224.0,32223.0,1.03851528]
[1609627650978,0.1771,32224.0,32223.0,0.03851528]
[1609627651278,0.1771,32224.0,32223.0,1.03851528]
[1609627652178,0.1771,32224.0,32223.0,4.79201528]
[1609627654184,0.00397341,32231.0,32223.0,4.79201528]
[1609627654383,0.00397341,32231.0,32223.0,1.03851528]
[1609627654783,0.00397341,32231.0,32230.0,0.18043158]
[1609627655184,0.00397341,32231.0,32230.0,0.21894452]
[1609627656786,0.00396651,32233.0,32230.0,0.21894452]
[1609627657387,0.00396651,32233.0,32231.0,0.00040788]
[1609627657586,0.00396651,32233.0,32231.0,0.03851147]
[1609627658088,0.18106419,32236.0,32232.0,3.7353]
[1609627658587,0.18106419,32236.0,32233.0,0.00040785]
[1609627658789,0.18106419,32236.0,32235.0,0.18043158]
[1609627659189,0.18106419,32236.0,32235.0,0.18083943]
[1609627661792,0.1771,32236.0,32235.0,0.18083943]
[1609627663493,0.1771,32236.0,32235.0,5.07723943]
[1609627664297,0.28517,32236.0,32235.0,5.07723943]
[1609627672304,0.28517,32236.0,32235.0,6.07723943]
[1609627672709,0.10807,32236.0,32235.0,6.07723943]
[1609627672906,0.14834,32239.0,32235.0,6.11533626]
[1609627673306,0.14834,32239.0,32236.0,0.03850136]
[1609627678313,0.00395058,32252.0,32236.0,0.03850136]
[1609627678712,0.04007418,32253.0,32236.0,0.03850136]
[1609627679312,0.04007418,32253.0,32252.0,0.18043158]
[1609627679512,0.04007418,32253.0,32252.0,0.90543158]
[1609627679913,0.04007418,32253.0,32252.0,0.9058393]
[1609627681417,0.04007418,32253.0,32252.0,0.8758393]
[1609627682116,0.02859202,32253.0,32252.0,0.8758393]
[1609627682316,0.00959161,32253.0,32252.0,0.8758393]
[1609627683019,0.02854829,32256.0,32252.0,0.8758393]
[1609627683518,0.02854829,32256.0,32253.0,0.00040769]
[1609627685922,0.0095787,32256.0,32253.0,0.00040769]
[1609627687325,0.18043158,32254.0,32253.0,0.00040769]
[1609627687623,0.28617158,32254.0,32253.0,0.00040769]
[1609627688425,0.30513426,32254.0,32246.0,0.00040773]
[1609627689328,0.00957537,32252.0,32249.0,0.18043158]
[1609627689925,0.00957537,32252.0,32250.0,0.00040773]
[1609627691327,0.18043158,32251.0,32250.0,0.00040773]
[1609627693932,1.18043158,32251.0,32250.0,0.00040773]
[1609627694332,4.98883158,32251.0,32250.0,0.00040773]
[1609627694533,4.99841246,32251.0,32236.0,5.0862]
[1609627694733,4.99841246,32251.0,32250.0,0.00040948]
[1609627695034,4.99841246,32251.0,32237.0,0.03850393]
[1609627695237,1.19001246,32251.0,32237.0,0.03850393]
[1609627695435,1.00958088,32251.0,32250.0,0.00040948]
[1609627695635,1.00958088,32251.0,32246.0,0.18043158]
[1609627695837,0.56389817,32251.0,32250.0,0.00040948]
[1609627696036,0.56389817,32251.0,32247.0,0.00040948]
[1609627696938,0.56389817,32251.0,32235.0,0.03850455]
[1609627697137,0.56389817,32251.0,32248.0,0.0004095]
[1609627697337,0.18043158,32249.0,32243.0,5.0715]
[1609627697637,0.18043158,32249.0,32244.0,0.0004095]
[1609627698637,0.18043158,32249.0,32241.0,0.0004095]
[1609627698839,0.18043158,32249.0,32241.0,0.03850362]
[1609627699038,0.02,32243.0,32241.0,0.03850362]
[1609627699439,0.17896,32243.0,32242.0,0.18043158]
[1609627699840,1.17896,32243.0,32242.0,0.18084108]
[1609627700541,1.17896,32243.0,32242.0,0.21893575]
[1609627701439,1.35939158,32243.0,32242.0,0.21893575]
[1609627701840,0.35939158,32243.0,32242.0,0.21893575]
[1609627704044,0.17896,32243.0,32242.0,0.21893575]
[1609627704848,0.17896,32243.0,32242.0,3.96223575]
[1609627713063,0.18043158,32247.0,32243.0,0.07934]
[1609627713463,0.18043158,32247.0,32244.0,0.03849936]
[1609627713664,0.18043158,32247.0,32246.0,0.18043158]
[1609627714264,0.18043158,32247.0,32246.0,0.21893151]
[1609627714767,0.19006279,32247.0,32246.0,0.21893151]
[1609627715767,1.19006279,32247.0,32246.0,0.21893151]
[1609627715966,1.19006279,32247.0,32246.0,0.87533151]
[1609627717970,1.2091415,32247.0,32246.0,0.87533151]
[1609627719170,1.3365515,32247.0,32246.0,0.87533151]
[1609627721778,0.3365515,32247.0,32246.0,0.87533151]
[1609627723380,0.89401669,32247.0,32246.0,0.87533151]
[1609627724881,0.71358511,32247.0,32246.0,0.69489993]
[1609627725682,0.14648871,32247.0,32246.0,0.69489993]
[1609627725882,0.32692029,32247.0,32246.0,0.87533151]
[1609627726487,0.89438696,32247.0,32246.0,0.87533151]
[1609627727387,0.32692029,32247.0,32246.0,0.87533151]
[1609627727989,0.30784158,32247.0,32246.0,0.87533151]
[1609627728188,0.87548137,32247.0,32246.0,0.87533151]
[1609627728789,0.87548137,32247.0,32246.0,0.21893151]
[1609627732891,0.87548137,32247.0,32246.0,0.03849993]
[1609627733292,0.87548137,32247.0,32245.0,0.0384976]
[1609627733493,0.87548137,32247.0,32246.0,0.03849764]
[1609627733894,0.87548137,32247.0,32245.0,0.03849771]
[1609627734094,0.87548137,32247.0,32246.0,0.03849672]
[1609627734593,0.87548137,32247.0,32245.0,0.03849677]
[1609627734794,0.86548137,32247.0,32246.0,0.03849679]
[1609627735095,0.86548137,32247.0,32245.0,0.03849687]
[1609627735296,1.54720102,32247.0,32245.0,0.03849687]
[1609627735497,1.54720102,32247.0,32246.0,0.03849687]
[1609627735696,1.53720102,32247.0,32246.0,0.03849687]
[1609627735896,1.53720102,32247.0,32244.0,0.57427494]
[1609627735897,2.53720102,32247.0,32245.0,0.03849689]
[1609627736097,2.53720102,32247.0,32246.0,0.03849705]
[1609627736399,1.28784158,32247.0,32245.0,0.03849703]
[1609627736697,1.28784158,32247.0,32246.0,0.03849706]
[1609627737197,1.28784158,32247.0,32245.0,0.03849732]
[1609627737397,1.28784158,32247.0,32246.0,0.0384974]
[1609627737697,1.28784158,32247.0,32245.0,0.03849951]
[1609627737898,1.0,32246.0,32245.0,0.03849951]
[1609627738098,1.0,32246.0,32244.0,0.57427522]
[1609627738299,1.0,32246.0,32245.0,0.03849977]
[1609627740401,1.68178867,32246.0,32245.0,0.03849977]
[1609627741103,1.0,32246.0,32245.0,0.03849977]
[1609627742005,2.25006511,32246.0,32245.0,0.03849977]
[1609627743006,2.25006511,32246.0,32244.0,0.57427522]
[1609627743205,2.25006511,32246.0,32245.0,0.03849819]
[1609627744807,2.70539491,32246.0,32245.0,0.03849819]
[1609627750112,3.53859221,32246.0,32245.0,0.03849819]
[1609627750913,2.70539491,32246.0,32245.0,0.03849819]
[1609627751813,1.70539491,32246.0,32245.0,0.03849819]
[1609627760227,1.70539491,32246.0,32245.0,3.936]
[1609627760530,1.70539491,32246.0,32245.0,4.05067272]
[1609627763639,0.56822863,32246.0,32245.0,4.05067272]
[1609627765240,0.56822863,32246.0,32245.0,0.11467272]
[1609627765638,0.56822863,32246.0,32245.0,0.03849757]
[1609627766037,0.56822863,32246.0,32244.0,0.03849675]
[1609627766238,0.56822863,32246.0,32245.0,0.03849669]
[1609627766537,0.56822863,32246.0,32244.0,0.03849669]
[1609627766937,0.56822863,32246.0,32245.0,0.03849666]
[1609627769445,0.01898548,32246.0,32245.0,0.03849666]
[1609627770445,0.00959104,32246.0,32245.0,0.03849666]
[1609627771246,0.31642429,32247.0,32245.0,0.03849666]
[1609627773048,0.29743027,32247.0,32245.0,0.03849666]
[1609627775450,0.29743027,32247.0,32245.0,0.1146689]
[1609627775652,0.28784158,32247.0,32246.0,5.4761]
[1609627775851,0.28784158,32247.0,32246.0,1.0]
[1609627776052,0.28784158,32247.0,32246.0,1.11466763]
[1609627780962,0.10741,32247.0,32246.0,1.11466763]
[1609627781363,0.02861247,32251.0,32246.0,1.11466763]
[1609627781764,0.02861247,32251.0,32247.0,0.11466271]
[1609627781964,0.02861247,32251.0,32248.0,1.0]
[1609627782267,0.02861247,32251.0,32250.0,0.18043158]
[1609627782768,0.02861247,32251.0,32250.0,0.21892568]
[1609627782967,0.00960024,32251.0,32250.0,0.21892568]
[1609627788474,0.00960024,32251.0,32250.0,0.90272568]
[1609627788871,0.00960024,32251.0,32250.0,0.97889311]
[1609627789072,0.02860998,32252.0,32250.0,0.97889311]
[1609627789573,0.02860998,32252.0,32251.0,0.00040995]
[1609627789771,0.02860998,32252.0,32251.0,0.03849367]
[1609627790073,0.02860998,32252.0,32251.0,0.11466095]
[1609627790476,0.02860998,32252.0,32251.0,0.03849367]
[1609627790978,0.00959722,32252.0,32251.0,0.03849367]
[1609627791676,0.20901818,32253.0,32251.0,0.03849367]
[1609627793779,0.00958968,32252.0,32251.0,0.03849367]
[1609627794278,0.00958968,32252.0,32251.0,0.71719367]
[1609627795681,0.20901588,32253.0,32251.0,0.71719367]
[1609627796080,0.20901588,32253.0,32252.0,0.03849241]
[1609627796383,0.19942604,32253.0,32252.0,0.03849241]
[1609627799983,0.20901176,32253.0,32252.0,0.03849241]
[1609627801386,0.19942604,32253.0,32252.0,0.03849241]
[1609627803388,0.76298853,32253.0,32252.0,0.03849241]
[1609627806792,0.20900488,32253.0,32252.0,0.03849241]
[1609627807793,1.20900488,32253.0,32252.0,0.03849241]
[1609627808297,1.76302104,32253.0,32252.0,0.03849241]
[1609627810298,1.76302104,32253.0,32251.0,0.03849072]
[1609627810499,1.74402658,32253.0,32252.0,0.03849078]
[1609627810801,1.74402658,32253.0,32251.0,0.03849124]
[1609627810998,1.74402658,32253.0,32252.0,0.00040993]
[1609627811199,1.74402658,32253.0,32252.0,0.03849149]
[1609627811399,1.74402658,32253.0,32250.0,0.18043158]
[1609627811400,1.74402658,32253.0,32251.0,0.03849152]
[1609627811599,1.74402658,32253.0,32252.0,0.03849121]
[1609627811800,0.74402658,32253.0,32252.0,0.03849121]
[1609627812101,0.74402658,32253.0,32251.0,0.03849186]
[1609627812300,0.74402658,32253.0,32252.0,0.03808226]
[1609627812501,0.74402658,32253.0,32252.0,0.03849219]
[1609627812701,0.74402658,32253.0,32251.0,0.03849258]
[1609627812902,0.74402658,32253.0,32252.0,0.03849266]
[1609627813103,0.18043158,32253.0,32252.0,0.03849266]
[1609627813405,0.18043158,32253.0,32251.0,0.03849184]
[1609627813804,0.18043158,32253.0,32252.0,0.03849193]
[1609627814205,0.18043158,32253.0,32251.0,0.03849292]
[1609627814406,0.18043158,32253.0,32252.0,0.00040993]
[1609627814617,0.18043158,32253.0,32252.0,0.03849276]
[1609627814807,0.18043158,32253.0,32251.0,0.03849158]
[1609627815015,1.88220599,32253.0,32252.0,4.10759141]
[1609627817112,1.88220599,32253.0,32252.0,0.03849141]
[1609627817712,1.88220599,32253.0,32251.0,0.0384919]
[1609627817911,1.88220599,32253.0,32252.0,0.03849206]
[1609627818113,0.18043158,32253.0,32252.0,0.03849206]
[1609627818312,0.18043158,32253.0,32252.0,0.05289206]
[1609627818513,0.18043158,32253.0,32252.0,0.0144]
[1609627818713,0.18043158,32253.0,32252.0,0.05289311]
[1609627819214,1.88522097,32253.0,32252.0,0.05289311]
[1609627819715,2.71828272,32253.0,32252.0,0.05289311]
[1609627819915,3.71828272,32253.0,32252.0,0.05289311]
[1609627823420,2.88522097,32253.0,32252.0,0.05289311]
[1609627823818,1.88522097,32253.0,32252.0,0.05289311]
[1609627826523,2.71861602,32253.0,32252.0,0.05289311]
[1609627827123,1.88522097,32253.0,32252.0,0.05289311]
[1609627827824,2.88522097,32253.0,32252.0,0.05289311]
[1609627831430,3.7190115,32253.0,32252.0,0.05289311]
[1609627831828,2.88522097,32253.0,32252.0,0.05289311]
[1609627833030,3.719084,32253.0,32252.0,0.05289311]
[1609627834329,4.719084,32253.0,32252.0,0.05289311]
[1609627834531,4.71946483,32253.0,32252.0,0.01480995]
[1609627834731,4.71946483,32253.0,32230.0,2.06618964]
[1609627834931,4.5142,32246.0,32230.0,2.06618964]
[1609627835132,1.0,32245.0,32231.0,0.0385008]
[1609627835332,2.08562937,32240.0,32216.0,2.0760657]
[1609627835531,1.0939,32239.0,32216.0,2.0760657]
[1609627835731,4.6645,32232.0,32216.0,2.0760657]
[1609627835932,6.0,32218.0,32217.0,0.03851617]
[1609627836131,6.23178,32218.0,32217.0,0.03851617]
[1609627836331,6.23178,32218.0,32216.0,0.9843657]
[1609627836531,0.18043158,32217.0,32216.0,0.9843657]
[1609627836832,0.18043158,32217.0,32216.0,0.97849154]
[1609627837032,1.18043158,32217.0,32216.0,0.85719154]
[1609627837231,5.59611278,32217.0,32216.0,0.00294405]
[1609627837432,5.59611278,32217.0,32213.0,2.7111553]
[1609627837632,5.59611278,32217.0,32213.0,1.6814353]
[1609627837831,6.0,32214.0,32213.0,0.5906053]
[1609627838033,6.0,32214.0,32176.0,3.2128358]
[1609627838234,6.00038134,32214.0,32213.0,0.00040852]
[1609627838434,0.00038129,32213.0,32205.0,4.2613]
[1609627838633,0.18043158,32206.0,32205.0,4.2613]
[1609627838833,0.34997158,32206.0,32205.0,4.2613]
[1609627839034,0.34997158,32206.0,32205.0,4.29983872]
[1609627839639,2.04072845,32206.0,32205.0,4.29983872]
[1609627839833,1.86029687,32206.0,32205.0,4.29983872]
[1609627840634,1.86029687,32206.0,32205.0,4.55650613]
[1609627840934,0.47189687,32206.0,32205.0,5.55650613]
[1609627841135,0.02843735,32209.0,32205.0,5.55650613]
[1609627841335,0.02843735,32209.0,32205.0,1.29520613]
[1609627841735,0.82337359,32214.0,32206.0,0.11473221]